[Event "Berliner IM-Turnier 2025"]
[Site "Berlin"]
[Date "2025.02.28"]
[Round "6.8"]
[White "Florstedt, Johannes"]
[Black "Noeldner, Julian"]
[Result "1-0"]
[Annotator "ChessBase"]
[ECO "C47"]
[WhiteElo "2349"]
[BlackElo "2233"]
[PlyCount "65"]
[EventDate "2025.02.23"]
[EventType "tourn"]
[EventCountry "GER"]
[SourceTitle "playchess.com"]
[Source "ChessBase"]
[SourceQuality "1"]
[TimeControl "40/5400+30:1800+30"]

1. e4 {[%emt 0:03:20]} e5 {[%emt 0:00:08]} 2. Nf3 {[%emt 0:00:07]} Nf6 {[%emt 0:00:07]} 3. Nc3 {[%emt 0:00:32]} Nc6 {[%emt 0:00:07]} 4. d4 {[%emt 0:00:05]} exd4 {[%emt 0:00:05]} 5. Nxd4 {[%emt 0:00:16]} Bb4 {[%emt 0:00:06]} 6. Nxc6 {[%emt 0:00:10]} bxc6 {[%emt 0:00:06]} 7. Bd3 {[%emt 0:00:06]} d5 {[%emt 0:00:17]} 8. exd5 {[%emt 0:00:08]} O-O {[%emt 0:00:09]} 9. O-O {[%emt 0:00:07]} Bg4 {[%emt 0:01:10]} 10. f3 {[%emt 0:05:48]} Bh5 {[%emt 0:00:06]} 11. dxc6 {[%emt 0:00:08]} Qd4+ {[%emt 0:00:06]} 12. Kh1 {[%emt 0:00:09]} Bxc3 {[%emt 0:00:07]} 13. bxc3 {[%emt 0:00:04]} Qxc3 {[%emt 0:00:05]} 14. Bf4 {[%emt 0:00:11]} Qxc6 {[%emt 0:00:29]} 15. Qe2 {[%emt 0:00:47]} Rad8 {[%emt 0:09:25]} 16. Bb5 {[%emt 0:04:54]} Qc5 {[%emt 0:03:32]} 17. Be3 {[%emt 0:02:50]} Qa3 {[%emt 0:04:36]} 18. Qf2 {[%emt 0:13:14]} Qa5 {[%emt 0:04:28]} 19. Bc4 {[%emt 0:06:23]} Rfe8 {[%emt 0:14:25]} 20. Bxa7 {[%emt 0:01:47]} Rd2 {[%emt 0:40:57]} 21. Qc5 {[%emt 0:00:45]} Qxc5 {[%emt 0:00:06]} 22. Bxc5 {[%emt 0:00:04]} Rxc2 {[%emt 0:00:04]} 23. Rfc1 {[%emt 0:00:19]} Bg6 {[%emt 0:00:07]} 24. Rxc2 {[%emt 0:01:42]} Bxc2 {[%emt 0:01:28]} 25. a4 {[%emt 0:00:13]} Re5 {[%emt 0:16:17]} 26. a5 {[%emt 0:04:34]} Rxc5 {[%emt 0:03:41]} 27. a6 {[%emt 0:00:10]} Rxc4 {[%emt 0:00:15]} 28. a7 {[%emt 0:00:07]} h5 {[%emt 0:00:29]} 29. a8=Q+ {[%emt 0:00:11]} Kh7 {[%emt 0:00:03]} 30. Qa2 {[%emt 0:02:32]} Bd3 {[%emt 0:01:43]} 31. Qb3 {[%emt 0:01:33]} Be2 {[%emt 0:00:28]} 32. Re1 {[%emt 0:00:20]} Kg8 {[%emt 0:00:41]} 33. Kg1 {[%emt 0:00:36]} 1-0

[Event "Berliner IM-Turnier 2025"]
[Site "Berlin"]
[Date "2025.02.28"]
[Round "6.9"]
[White "Muse, Drazen"]
[Black "Yatskar, Martin"]
[Result "0-1"]
[Annotator "ChessBase"]
[ECO "D32"]
[WhiteElo "2309"]
[BlackElo "2157"]
[PlyCount "72"]
[EventDate "2025.02.23"]
[EventType "tourn"]
[EventCountry "GER"]
[SourceTitle "playchess.com"]
[Source "ChessBase"]
[SourceQuality "1"]
[TimeControl "40/5400+30:1800+30"]

1. d4 {[%emt 0:00:49]} d5 {[%emt 0:03:47]} 2. Nf3 {[%emt 0:00:06]} c5 {[%emt 0:00:21]} 3. c4 {[%emt 0:00:16]} e6 {[%emt 0:00:12]} 4. cxd5 {[%emt 0:00:05]} exd5 {[%emt 0:00:06]} 5. Bg5 {[%emt 0:00:03]} Be7 {[%emt 0:00:15]} 6. Bxe7 {[%emt 0:00:03]} Nxe7 {[%emt 0:00:10]} 7. dxc5 {[%emt 0:00:35]} Nbc6 {[%emt 0:03:00]} 8. e3 {[%emt 0:01:16]} Qa5+ {[%emt 0:04:38]} 9. Nc3 {[%emt 0:00:27]} O-O {[%emt 0:05:27]} 10. Be2 {[%emt 0:00:21]} Bg4 {[%emt 0:02:22]} 11. O-O {[%emt 0:01:35]} Qxc5 {[%emt 0:08:50]} 12. Rc1 {[%emt 0:01:43]} Rfd8 {[%emt 0:03:10]} 13. Qb3 {[%emt 0:08:58]} Qd6 {[%emt 0:20:24]} 14. Rfd1 {[%emt 0:00:42]} Qf6 {[%emt 0:09:47]} 15. Nb5 {[%emt 0:06:15]} Ne5 {[%emt 0:10:48]} 16. Nbd4 {[%emt 0:01:17]} Nf5 {[%emt 0:02:49]} 17. Nxe5 {[%emt 0:02:57]} Nxd4 {[%emt 0:00:11]} 18. Nxg4 {[%emt 0:06:51]} Nxe2+ {[%emt 0:00:08]} 19. Kf1 {[%emt 0:00:03]} Qh4 {[%emt 0:01:09]} 20. Kxe2 {[%emt 0:00:04]} Qxg4+ {[%emt 0:00:06]} 21. Kf1 {[%emt 0:00:02]} Qh5 {[%emt 0:06:06]} 22. h3 {[%emt 0:00:34]} b6 {[%emt 0:01:08]} 23. Rd4 {[%emt 0:00:15]} g6 {[%emt 0:06:33]} 24. Rcd1 {[%emt 0:01:37]} Rac8 {[%emt 0:00:39]} 25. e4 {[%emt 0:04:06]} Qe5 {[%emt 0:00:55]} 26. g3 {[%emt 0:01:42]} Kg7 {[%emt 0:02:54]} 27. Rxd5 {[%emt 0:03:24]} Rxd5 {[%emt 0:00:07]} 28. exd5 {[%emt 0:00:03]} Qe4 {[%emt 0:00:41]} 29. Kg1 {[%emt 0:03:43]} Qc2 {[%emt 0:00:28]} 30. Qf3 {[%emt 0:04:13]} Qxb2 {[%emt 0:00:06]} 31. d6 {[%emt 0:00:22]} Qf6 {[%emt 0:05:02]} 32. d7 {[%emt 0:00:50]} Qxf3 {[%emt 0:00:15]} 33. dxc8=Q {[%emt 0:00:11]} Qxd1+ {[%emt 0:00:39]} 34. Kg2 {[%emt 0:00:50]} Qd5+ {[%emt 0:00:12]} 35. Kg1 {[%emt 0:00:05]} Qxa2 {[%emt 0:00:15]} 36. Qc3+ {[%emt 0:00:02]} f6 {[%emt 0:04:50]} 0-1

[Event "Berliner IM-Turnier 2025"]
[Site "Berlin"]
[Date "2025.02.28"]
[Round "6.10"]
[White "Moritz, Aron"]
[Black "Ahmadinia, Ebrahim"]
[Result "1/2-1/2"]
[Annotator "ChessBase"]
[ECO "C55"]
[WhiteElo "2276"]
[BlackElo "2404"]
[PlyCount "114"]
[EventDate "2025.02.23"]
[EventType "tourn"]
[EventCountry "GER"]
[SourceTitle "playchess.com"]
[Source "ChessBase"]
[SourceQuality "1"]
[TimeControl "40/5400+30:1800+30"]

1. e4 {[%emt 0:00:04]} e5 {[%emt 0:06:14]} 2. Nf3 {[%emt 0:00:11]} Nc6 {[%emt 0:00:08]} 3. Bc4 {[%emt 0:00:18]} Nf6 {[%emt 0:01:57]} 4. d3 {[%emt 0:00:15]} Be7 {[%emt 0:00:21]} 5. O-O {[%emt 0:00:32]} O-O {[%emt 0:00:08]} 6. Re1 {[%emt 0:00:50]} d6 {[%emt 0:00:08]} 7. a4 {[%emt 0:00:17]} Na5 {[%emt 0:00:07]} 8. Ba2 {[%emt 0:00:15]} c5 {[%emt 0:00:02]} 9. c3 {[%emt 0:00:43]} Nc6 {[%emt 0:00:05]} 10. Na3 {[%emt 0:05:32]} h6 {[%emt 0:00:30]} 11. Bd2 {[%emt 0:03:56]} a6 {[%emt 0:05:41]} 12. h3 {[%emt 0:02:11]} Re8 {[%emt 0:02:22]} 13. Nc2 {[%emt 0:08:00]} Bf8 {[%emt 0:30:41]} 14. Ne3 {[%emt 0:06:48]} Be6 {[%emt 0:02:35]} 15. Bxe6 {[%emt 0:04:19]} fxe6 {[%emt 0:03:00]} 16. Nh2 {[%emt 0:02:15]} Be7 {[%emt 0:08:00]} 17. Nhg4 {[%emt 0:05:22]} Nh7 {[%emt 0:09:13]} 18. g3 {[%emt 0:21:45]} Rb8 {[%emt 0:04:59]} 19. h4 {[%emt 0:01:00]} Rf8 {[%emt 0:00:18]} 20. Qb3 {[%emt 0:13:37]} Qd7 {[%emt 0:00:08]} 21. Nf5 {[%emt 0:01:00]} Bf6 {[%emt 0:02:36]} 22. Nfe3 {[%emt 0:02:17]} Kh8 {[%emt 0:01:01]} 23. Kg2 {[%emt 0:00:24]} Rbe8 {[%emt 0:01:31]} 24. Re2 {[%emt 0:05:53]} Bd8 {[%emt 0:00:10]} 25. Qd1 {[%emt 0:00:21]} Qf7 {[%emt 0:00:34]} 26. Nh2 {[%emt 0:01:30]} Qg6 {[%emt 0:02:23]} 27. Kh1 {[%emt 0:00:33]} Nf6 {[%emt 0:02:24]} 28. Qg1 {[%emt 0:03:36]} d5 {[%emt 0:00:58]} 29. f3 {[%emt 0:00:13]} c4 {[%emt 0:00:17]} 30. dxc4 {[%emt 0:02:26]} dxe4 {[%emt 0:00:11]} 31. fxe4 {[%emt 0:00:36]} Nxe4 {[%emt 0:01:35]} 32. Nef1 {[%emt 0:02:20]} Nd6 {[%emt 0:01:17]} 33. c5 {[%emt 0:00:48]} Nf5 {[%emt 0:01:48]} 34. Rae1 {[%emt 0:02:53]} Bc7 {[%emt 0:00:41]} 35. Re4 {[%emt 0:00:11]} Rd8 {[%emt 0:00:10]} 36. R1e2 {[%emt 0:04:02]} Rd3 {[%emt 0:00:20]} 37. Be1 {[%emt 0:00:08]} Rd1 {[%emt 0:04:01]} 38. Qg2 {[%emt 0:01:25]} Nfe7 {[%emt 0:02:05]} 39. Rd2 {[%emt 0:00:34]} Ra1 {[%emt 0:06:36]} 40. Rf2 {[%emt 0:00:26]} Rd8 {[%emt 0:02:38]} 41. Rd2 {[%emt 0:02:49]} Rd5 {[%emt 0:02:32]} 42. b4 {[%emt 0:08:28]} Rxa4 {[%emt 0:01:04]} 43. Rf2 {[%emt 0:07:01]} Qe8 {[%emt 0:05:14]} 44. Ne3 {[%emt 0:02:21]} Rd8 {[%emt 0:01:32]} 45. Nhg4 {[%emt 0:04:29]} Ra1 {[%emt 0:00:34]} 46. Nc4 {[%emt 0:02:40]} Qh5 {[%emt 0:06:39]} 47. Rfe2 {[%emt 0:00:21]} Rd5 {[%emt 0:02:56]} 48. Kh2 {[%emt 0:01:27]} Nf5 {[%emt 0:01:07]} 49. Qf3 {[%emt 0:00:48]} g5 {[%emt 0:05:38]} 50. Ngxe5 {[%emt 0:01:18]} Qxf3 {[%emt 0:00:09]} 51. Nxf3 {[%emt 0:00:05]} gxh4 {[%emt 0:00:35]} 52. Rxe6 {[%emt 0:03:39]} hxg3+ {[%emt 0:01:55]} 53. Kg2 {[%emt 0:00:12]} Kg7 {[%emt 0:01:49]} 54. Ne3 {[%emt 0:00:09]} Nxe3+ {[%emt 0:00:26]} 55. R6xe3 {[%emt 0:00:27]} Rd7 {[%emt 0:01:32]} 56. Bxg3 {[%emt 0:00:49]} Bxg3 {[%emt 0:00:28]} 57. Kxg3 {[%emt 0:00:01]} Rad1 {[%emt 0:00:40]} 1/2-1/2

[Event "Berliner IM-Turnier 2025"]
[Site "Berlin"]
[Date "2025.03.01"]
[Round "8.6"]
[White "Zobel, Christian"]
[Black "Poltorak, Sebastian"]
[Result "0-1"]
[Annotator "ChessBase"]
[ECO "E60"]
[WhiteElo "2188"]
[BlackElo "2407"]
[PlyCount "34"]
[EventDate "2025.02.23"]
[EventType "tourn"]
[EventCountry "GER"]
[SourceTitle "playchess.com"]
[Source "ChessBase"]
[SourceQuality "1"]
[TimeControl "40/5400+30:1800+30"]

1. d4 {[%emt 0:00:04]} Nf6 {[%emt 0:00:09]} 2. c4 {[%emt 0:00:24]} g6 {[%emt 0:00:07]} 3. f3 {[%emt 0:00:31]} c5 {[%emt 0:01:33]} 4. d5 {[%emt 0:01:32]} d6 {[%emt 0:00:43]} 5. e4 {[%emt 0:01:00]} e6 {[%emt 0:00:04]} 6. Nc3 {[%emt 0:01:28]} Bg7 {[%emt 0:00:40]} 7. dxe6 {[%emt 0:07:06]} Bxe6 {[%emt 0:01:32]} 8. Bf4 {[%emt 0:02:02]} O-O {[%emt 0:02:28]} 9. Bxd6 {[%emt 0:03:45]} Re8 {[%emt 0:00:09]} 10. Bf4 {[%emt 0:06:22]} Nc6 {[%emt 0:11:43]} 11. Be2 {[%emt 0:16:56]} Nd4 {[%emt 0:05:06]} 12. Kf2 {[%emt 0:07:37]} Nh5 {[%emt 0:00:25]} 13. Bg3 {[%emt 0:02:38]} f5 {[%emt 0:01:08]} 14. exf5 {[%emt 0:01:37]} Bxf5 {[%emt 0:00:56]} 15. Bd3 {[%emt 0:01:58]} Qb6 {[%emt 0:02:44]} 16. Rb1 {[%emt 0:02:15]} Rad8 {[%emt 0:01:22]} 17. Nd5 {[%emt 0:01:18]} Rxd5 {[%emt 0:00:06]} 0-1

[Event "Berliner IM-Turnier 2025"]
[Site "Berlin"]
[Date "2025.03.01"]
[Round "8.7"]
[White "Florstedt, Johannes"]
[Black "Jakubowski, Krzysztof"]
[Result "0-1"]
[Annotator "ChessBase"]
[ECO "B54"]
[WhiteElo "2349"]
[BlackElo "2449"]
[PlyCount "50"]
[EventDate "2025.02.23"]
[EventType "tourn"]
[EventCountry "GER"]
[SourceTitle "playchess.com"]
[Source "ChessBase"]
[SourceQuality "1"]
[TimeControl "40/5400+30:1800+30"]

1. e4 {[%emt 0:00:01]} c5 {[%emt 0:01:30]} 2. Nf3 {[%emt 0:00:43]} e6 {[%emt 0:00:43]} 3. d4 {[%emt 0:00:27]} cxd4 {[%emt 0:00:07]} 4. Nxd4 {[%emt 0:00:06]} Nc6 {[%emt 0:00:07]} 5. Nc3 {[%emt 0:00:14]} d6 {[%emt 0:00:09]} 6. g4 {[%emt 0:02:25]} a6 {[%emt 0:00:14]} 7. Nxc6 {[%emt 0:07:29]} bxc6 {[%emt 0:00:06]} 8. h4 {[%emt 0:00:09]} Rb8 {[%emt 0:14:21]} 9. b3 {[%emt 0:05:50]} h6 {[%emt 0:05:32]} 10. Bb2 {[%emt 0:02:51]} Be7 {[%emt 0:01:59]} 11. Qd2 {[%emt 0:04:03]} e5 {[%emt 0:04:11]} 12. Be2 {[%emt 0:01:03]} Nf6 {[%emt 0:01:12]} 13. f3 {[%emt 0:00:47]} d5 {[%emt 0:07:30]} 14. O-O-O {[%emt 0:01:38]} d4 {[%emt 0:04:50]} 15. Na4 {[%emt 0:02:16]} c5 {[%emt 0:11:06]} 16. Ba3 {[%emt 0:01:51]} c4 {[%emt 0:03:06]} 17. Bxe7 {[%emt 0:00:23]} Qxe7 {[%emt 0:00:06]} 18. Bxc4 {[%emt 0:04:07]} Qa3+ {[%emt 0:00:34]} 19. Nb2 {[%emt 0:00:44]} Qxa2 {[%emt 0:01:28]} 20. c3 {[%emt 1:03:23]} Bxg4 {[%emt 0:16:23]} 21. fxg4 {[%emt 0:00:00]} Nxe4 {[%emt 0:00:28]} 22. Qe1 {[%emt 0:00:00]} dxc3 {[%emt 0:03:45]} 23. Na4 {[%emt 0:00:00]} c2 {[%emt 0:03:06]} 24. Qxe4 {[%emt 0:00:00]} Qb1+ {[%emt 0:00:08]} 25. Kd2 {[%emt 0:00:00]} cxd1=Q+ {[%emt 0:00:04]} 0-1

[Event "Berliner IM-Turnier 2025"]
[Site "Berlin"]
[Date "2025.03.01"]
[Round "8.8"]
[White "Muse, Drazen"]
[Black "Schulze, Lara"]
[Result "1-0"]
[Annotator "ChessBase"]
[ECO "A20"]
[WhiteElo "2309"]
[BlackElo "2266"]
[PlyCount "85"]
[EventDate "2025.02.23"]
[EventType "tourn"]
[EventCountry "GER"]
[SourceTitle "playchess.com"]
[Source "ChessBase"]
[SourceQuality "1"]
[TimeControl "40/5400+30:1800+30"]

1. c4 {[%emt 0:00:07]} e5 {[%emt 0:00:06]} 2. d3 {[%emt 0:00:17]} Nf6 {[%emt 0:00:56]} 3. Nf3 {[%emt 0:01:43]} Nc6 {[%emt 0:02:23]} 4. g3 {[%emt 0:03:55]} e4 {[%emt 0:04:50]} 5. dxe4 {[%emt 0:05:32]} Nxe4 {[%emt 0:00:08]} 6. Nbd2 {[%emt 0:00:14]} Nxd2 {[%emt 0:02:54]} 7. Bxd2 {[%emt 0:00:05]} Be7 {[%emt 0:00:55]} 8. Bc3 {[%emt 0:00:27]} Bf6 {[%emt 0:00:36]} 9. Rc1 {[%emt 0:00:05]} O-O {[%emt 0:02:22]} 10. Bg2 {[%emt 0:03:59]} d6 {[%emt 0:01:03]} 11. O-O {[%emt 0:00:11]} Re8 {[%emt 0:01:39]} 12. Re1 {[%emt 0:02:08]} a5 {[%emt 0:01:27]} 13. Nd4 {[%emt 0:01:18]} Nxd4 {[%emt 0:07:44]} 14. Bxd4 {[%emt 0:00:07]} a4 {[%emt 0:01:35]} 15. e3 {[%emt 0:01:46]} Ra5 {[%emt 0:16:27]} 16. Rc3 {[%emt 0:02:28]} Be5 {[%emt 0:04:09]} 17. c5 {[%emt 0:04:59]} Bxd4 {[%emt 0:14:54]} 18. exd4 {[%emt 0:01:39]} Rxe1+ {[%emt 0:10:31]} 19. Qxe1 {[%emt 0:00:04]} Rb5 {[%emt 0:00:38]} 20. Bd5 {[%emt 0:08:42]} Bd7 {[%emt 0:08:26]} 21. Rf3 {[%emt 0:02:09]} Be8 {[%emt 0:00:09]} 22. Bc4 {[%emt 0:00:26]} Rxb2 {[%emt 0:00:57]} 23. Qc1 {[%emt 0:00:07]} Rb4 {[%emt 0:02:55]} 24. a3 {[%emt 0:00:59]} Rxc4 {[%emt 0:00:13]} 25. Qxc4 {[%emt 0:00:04]} dxc5 {[%emt 0:00:45]} 26. Qxc5 {[%emt 0:01:44]} Bc6 {[%emt 0:00:07]} 27. Re3 {[%emt 0:00:15]} g6 {[%emt 0:01:39]} 28. Re7 {[%emt 0:00:34]} b6 {[%emt 0:02:52]} 29. Qe5 {[%emt 0:00:13]} Kf8 {[%emt 0:02:00]} 30. Qf6 {[%emt 0:00:26]} Qd5 {[%emt 0:03:16]} 31. f3 {[%emt 0:02:15]} Qc4 {[%emt 0:00:44]} 32. Re3 {[%emt 0:08:01]} Kg8 {[%emt 0:00:47]} 33. Qd8+ {[%emt 0:01:44]} Kg7 {[%emt 0:00:08]} 34. Qxc7 {[%emt 0:00:21]} Qc1+ {[%emt 0:01:15]} 35. Kf2 {[%emt 0:00:08]} Qd2+ {[%emt 0:00:22]} 36. Re2 {[%emt 0:00:05]} Qxd4+ {[%emt 0:00:14]} 37. Kg2 {[%emt 0:00:04]} Qd3 {[%emt 0:02:10]} 38. Qe5+ {[%emt 0:00:17]} Kg8 {[%emt 0:00:20]} 39. Qe3 {[%emt 0:00:07]} Qd5 {[%emt 0:00:58]} 40. Rd2 {[%emt 0:00:42]} Qb5 {[%emt 0:01:42]} 41. Qc3 {[%emt 0:31:53]} Bd5 {[%emt 0:32:51]} 42. Qf6 {[%emt 0:01:20]} Qd7 {[%emt 0:00:00]} 43. Qd4 {[%emt 0:00:00]} 1-0

[Event "Berliner IM-Turnier 2025"]
[Site "Berlin"]
[Date "2025.03.01"]
[Round "8.9"]
[White "Moritz, Aron"]
[Black "Noeldner, Julian"]
[Result "0-1"]
[Annotator "ChessBase"]
[ECO "B62"]
[WhiteElo "2276"]
[BlackElo "2233"]
[PlyCount "76"]
[EventDate "2025.02.23"]
[EventType "tourn"]
[EventCountry "GER"]
[SourceTitle "playchess.com"]
[Source "ChessBase"]
[SourceQuality "1"]
[TimeControl "40/5400+30:1800+30"]

1. e4 {[%emt 0:00:03]} c5 {[%emt 0:00:44]} 2. Nf3 {[%emt 0:00:22]} d6 {[%emt 0:00:05]} 3. d4 {[%emt 0:00:44]} cxd4 {[%emt 0:00:06]} 4. Nxd4 {[%emt 0:00:04]} Nf6 {[%emt 0:00:04]} 5. Nc3 {[%emt 0:00:13]} Nc6 {[%emt 0:00:05]} 6. Bg5 {[%emt 0:00:20]} e6 {[%emt 0:00:05]} 7. Qd3 {[%emt 0:03:02]} Bd7 {[%emt 0:00:33]} 8. O-O-O {[%emt 0:02:18]} a6 {[%emt 0:00:06]} 9. Kb1 {[%emt 0:07:58]} Be7 {[%emt 0:04:08]} 10. h4 {[%emt 0:08:00]} b5 {[%emt 0:10:53]} 11. a3 {[%emt 0:25:44]} h6 {[%emt 0:11:17]} 12. Bc1 {[%emt 0:00:37]} Qc7 {[%emt 0:04:58]} 13. Nxc6 {[%emt 0:10:06]} Bxc6 {[%emt 0:01:32]} 14. f4 {[%emt 0:05:11]} Rb8 {[%emt 0:11:35]} 15. Be2 {[%emt 0:01:24]} a5 {[%emt 0:06:18]} 16. Bf3 {[%emt 0:01:35]} b4 {[%emt 0:00:20]} 17. axb4 {[%emt 0:00:30]} axb4 {[%emt 0:00:10]} 18. Ne2 {[%emt 0:00:47]} Qa5 {[%emt 0:10:15]} 19. b3 {[%emt 0:00:25]} e5 {[%emt 0:06:24]} 20. Bb2 {[%emt 0:02:34]} h5 {[%emt 0:06:03]} 21. Ng3 {[%emt 0:02:12]} g6 {[%emt 0:00:06]} 22. f5 {[%emt 0:00:18]} Ra8 {[%emt 0:03:06]} 23. fxg6 {[%emt 0:03:26]} fxg6 {[%emt 0:00:12]} 24. Qc4 {[%emt 0:02:30]} Bb5 {[%emt 0:02:16]} 25. Qe6 {[%emt 0:00:07]} Bd7 {[%emt 0:00:07]} 26. Qc4 {[%emt 0:00:21]} Bf8 {[%emt 0:06:24]} 27. Nf1 {[%emt 0:01:44]} Bh6 {[%emt 0:01:20]} 28. c3 {[%emt 0:05:14]} Ke7 {[%emt 0:09:36]} 29. Qxb4 {[%emt 0:01:03]} Qa6 {[%emt 0:00:23]} 30. c4 {[%emt 0:02:35]} Rhb8 {[%emt 0:00:23]} 31. Qc3 {[%emt 0:01:31]} Qa2+ {[%emt 0:00:29]} 32. Kc2 {[%emt 0:00:04]} Rxb3 {[%emt 0:00:08]} 33. Qxb3 {[%emt 0:01:05]} Ba4 {[%emt 0:00:05]} 34. Rd3 {[%emt 0:00:18]} Bxb3+ {[%emt 0:01:22]} 35. Rxb3 {[%emt 0:00:06]} Qa4 {[%emt 0:00:05]} 36. Kc3 {[%emt 0:00:58]} Rc8 {[%emt 0:00:35]} 37. Rb4 {[%emt 0:00:41]} Qa5 {[%emt 0:00:05]} 38. Kb3 {[%emt 0:00:25]} Nd7 {[%emt 0:00:15]} 0-1

[Event "Berliner IM-Turnier 2025"]
[Site "Berlin"]
[Date "2025.03.01"]
[Round "8.10"]
[White "Ahmadinia, Ebrahim"]
[Black "Yatskar, Martin"]
[Result "1-0"]
[Annotator "TA"]
[ECO "C48"]
[WhiteElo "2404"]
[BlackElo "2157"]
[PlyCount "121"]
[EventDate "2025.02.23"]
[EventType "tourn"]
[EventCountry "GER"]
[SourceTitle "playchess.com"]
[Source "ChessBase"]
[SourceQuality "1"]
[TimeControl "40/5400+30:1800+30"]

{[%evp 15,121,13,10,15,19,13,31,12,12,11,40,29,39,35,23,36,50,15,26,14,11,15,30,0,0,0,0,0,6,9,37,18,29,8,13,21,14,35,39,15,53,27,69,18,49,33,60,60,70,78,82,58,140,58,67,36,63,16,15,0,0,0,0,0,0,0,0,0,0,0,0,0,0,0,0,0,0,0,0,0,0,0,0,0,77,0,0,0,0,31,87,127,90,117,127,118,210,210,203,189,200,200,189,189,166,150,119,119]} 1. e4 {[%emt 0:00:28]} e5 {[%emt 0:00:12]} 2. Nf3 {[%emt 0:00:09]} Nc6 {[%emt 0:00:08]} 3. Nc3 {[%emt 0:00:33]} Nf6 {[%emt 0:00:09]} 4. Bb5 {[%emt 0:00:10]} Nd4 {[%emt 0:00:09]} 5. O-O {[%emt 0:03:33]} Nxb5 {[%emt 0:01:37]} 6. Nxb5 {[%emt 0:01:07]} c6 {[%emt 0:00:24]} 7. Nc3 {[%emt 0:00:05]} Qc7 {[%emt 0:00:34]} 8. d4 {[%emt 0:00:11]} d6 {[%emt 0:00:16]} 9. a4 {[%emt 0:00:33] C48: Four Knights: 4 Bb5, replies other than 4...Bb4.} a5 {[%emt 0:02:46]} 10. h3 {[%emt 0:00:21]} h6 {[%emt 0:02:28]} 11. Be3 {[%emt 0:10:31] White is slightly better.} Be7 {[%emt 0:04:57]} 12. Nd2 $146 {[%emt 0:06:38]} ({Predecessor:} 12. Qd3 O-O 13. Rfd1 Re8 14. Nd2 exd4 15. Bxd4 Be6 16. Nc4 d5 17. exd5 Nxd5 18. Nxd5 Bxd5 {0-1 Swiercz,D (2612)-Naroditsky,D (2619) American Cup Blitz 2024 (5)}) 12... exd4 {[%emt 0:02:49]} 13. Bxd4 {[%emt 0:00:08]} O-O {[%emt 0:00:14]} 14. Nc4 $1 {[%emt 0:05:50]} Be6 {[%emt 0:03:38]} 15. Ne3 {[%emt 0:21:57]} Nd7 {[%emt 0:01:31]} 16. Qf3 {[%emt 0:07:07]} Bf6 {[%emt 0:03:27]} 17. Bxf6 {[%emt 0:05:53]} Nxf6 {[%emt 0:00:05]} 18. Rad1 {[%emt 0:02:14]} Rad8 {[%emt 0:04:31]} 19. Rd2 {[%emt 0:01:58]} Qb6 {[%emt 0:01:54]} 20. Rb1 {[%emt 0:08:37]} Qb4 {[%emt 0:01:34]} 21. Rd3 {[%emt 0:04:26]} Rd7 {[%emt 0:07:52]} 22. b3 {[%emt 0:00:49]} Rfd8 {[%emt 0:04:08]} 23. Rbd1 {[%emt 0:00:07][%cal Oc3d5]} Qc5 {[%emt 0:03:18]} 24. R1d2 {[%emt 0:03:28]} Qe5 {[%emt 0:01:45]} 25. Rd4 {[%emt 0:03:48]} g6 {[%emt 0:05:46]} 26. Qd1 {[%emt 0:05:40]} Kg7 {[%emt 0:02:24]} 27. Qf1 {[%emt 0:02:50]} Qc5 {[%emt 0:09:38]} 28. Qa1 {[%emt 0:02:06][%cal Oc3d5]} Kg8 {[%emt 0:02:37]} 29. Ne2 {[%emt 0:01:22]} ({White should play} 29. Ncd5 $14 Nxe4 (29... cxd5 30. exd5 Nxd5 31. Rxd5 $16) 30. Rxe4 (30. Rc4 cxd5 31. Rxc5 dxc5 $14) 30... Bxd5 31. Ng4 Bxe4 32. Nf6+ Kf8 33. Nh7+ Ke7 34. Qf6+ Ke8 35. Qh8+ Ke7 36. Qf6+) 29... Nh5 {[%emt 0:01:52]} 30. Qf1 {[%emt 0:01:21]} Ng7 {[%emt 0:04:23]} 31. Qd1 {[%emt 0:00:20]} Qe5 {[%emt 0:03:46]} 32. f4 {[%emt 0:00:51]} Qc5 {[%emt 0:00:05]} 33. Kh2 {[%emt 0:00:36]} d5 {[%emt 0:04:40]} (33... f5 $14) 34. exd5 {[%emt 0:00:39]} (34. f5 $1 $16) 34... cxd5 $14 {[%emt 0:00:15]} 35. Ng3 {[%emt 0:00:25][%cal Of4f5]} h5 {[%emt 0:02:42][%cal Bh6h5,Bh5h4][%mdl 32] [#]} 36. f5 {[%emt 0:00:28]} h4 $1 $11 {[%emt 0:00:07]} 37. Ne2 {[%emt 0:00:44]} Qc7+ {[%emt 0:04:26]} 38. Kh1 {[%emt 0:00:45]} Nxf5 {[%emt 0:00:50]} 39. Nxf5 {[%emt 0:00:06]} Bxf5 {[%emt 0:00:07]} 40. Rxh4 {[%emt 0:00:55]} Re8 {[%emt 0:03:49]} 41. Qa1 $1 {[%emt 0:04:37] Inhibits Re3.} Qe5 {[%emt 0:02:11]} 42. Qxe5 {[%emt 0:00:05]} Rxe5 {[%emt 0:00:06]} 43. Rf4 {[%emt 0:02:13]} Rc7 {[%emt 0:03:01]} 44. Nd4 {[%emt 0:01:50]} Re1+ {[%emt 0:01:12]} 45. Kh2 {[%emt 0:00:09]} Be4 {[%emt 0:00:06]} 46. Rf6 {[%emt 0:06:00]} Kg7 {[%emt 0:02:29]} 47. Rb6 {[%emt 0:01:53]} Kh6 $1 {[%emt 0:00:38]} 48. Rb5 {[%emt 0:02:51]} f5 $1 {[%emt 0:01:56]} 49. Rxa5 {[%emt 0:04:29]} g5 {[%emt 0:00:35]} (49... f4 $11) 50. Ra8 {[%emt 0:01:28]} (50. Rb5 $1 $16) 50... f4 $14 {[%emt 0:00:44]} 51. Rh8+ {[%emt 0:01:27]} Kg6 $1 {[%emt 0:00:29]} 52. Rg8+ {[%emt 0:04:19]} Rg7 {[%emt 0:01:45]} ({Better is} 52... Kf6 $1 $14) 53. Rxg7+ $1 $16 {[%emt 0:00:09]} Kxg7 {[%emt 0:00:06]} 54. Nf3 {[%emt 0:01:32]} Bxf3 {[%emt 0:00:05]} 55. gxf3 {[%emt 0:00:01][%cal Oh3h4][%mdl 4096] Endgame KR-KR. White is a pawn up.} Rc1 {[%emt 0:01:27] [#]} (55... Kf6 $16 {might work better.}) 56. h4 $1 $18 {[%emt 0:00:31]} (56. Rxd5 Rxc2+ 57. Kg1 Rc1+ 58. Kf2 Rc2+ 59. Ke1 Kh6 $14) 56... gxh4 {[%emt 0:00:15] [#]} 57. Kh3 $1 {[%emt 0:00:05]} Kf6 {[%emt 0:02:25]} 58. Rxd5 {[%emt 0:00:07]} Rxc2 {[%emt 0:00:28]} 59. Kxh4 {[%emt 0:00:08]} Rc3 {[%emt 0:00:12]} 60. Rb5 {[%emt 0:00:18] a5 would now be deadly.} Rxf3 {[%emt 0:00:07]} 61. Kg4 $1 {[%emt 0:00:26] Weighted Error Value: White=0.11 (very precise) /Black=0.14 (very precise)   Mistake:       	White=4     	Black=4      Inaccurate:     	White=4     	Black=7      OK:         	White=21    	Black=17     Best:        	White=2     	Black=2      Strong:       	White=6     	Black=4} ({Don't do} 61. Rxb7 Rg3 $14) 1-0